{"text_format":"3","workbook":"xlsx","n_sheets":4,"sheets":["Seguimiento de proyecto","Diagrama de Gantt","Información","Datos de gráf. dinám. (ocultos)"],"not_rendered":{"charts":1,"defined_names":8},"read":"whole","date_system":"1900"}

{"sheet":"Seguimiento de proyecto","index":0,"n_rows":22,"n_cols":7,"rows_kept":22}
["Cree un seguimiento de proyecto en esta hoja de cálculo.\nEl título de esta hoja de cálculo se encuentra en la celda B1. \nPara obtener información sobre cómo usar esta hoja de cálculo, incluidas las instrucciones para lectores de pantalla, vea la hoja de cálculo Información.","Seguimiento de proyecto"]
["La fecha de inicio se puede especificar de forma manual en la celda D2, o bien puede usar la fórmula de ejemplo de la plantilla para encontrar la fecha anterior en la columna Hito de la tabla Hito siguiente.",null,"Fecha de inicio:",{"$f":"IFERROR(IF(MIN(Hitos[Fecha de inicio])=0,TODAY(),MIN(Hitos[Fecha de inicio])),TODAY())","v":"2018-07-17"}]
["La fecha de finalización se puede especificar de forma manual en la celda D3, o bien puede usar la fórmula de ejemplo de la plantilla para encontrar la fecha posterior en la columna Hito de la tabla Hito siguiente.",null,"Fecha de finalización:",{"$f":"IFERROR(IF(MAX(Hitos[Fecha de finalización])=0,TODAY(),MAX(Hitos[Fecha de finalización])),TODAY())","v":"2019-02-12"}]
["La información sobre las columnas de la tabla Hito se encuentra en las celdas B4 a G4.","Escriba un conjunto secuencial de números en la columna siguiente.","Escriba la fecha de inicio del hito o la actividad en la columna siguiente.","Escriba la fecha de finalización del hito o actividad en la columna siguiente.","Escriba la descripción del hito o actividad en la columna siguiente. Esta descripción aparecerá en el gráfico del proyecto.","Calculado automáticamente. Los datos siguientes, debajo de esta columna, se usan para representar en los gráficos los hitos y las actividades.","Calculado automáticamente. Duración de cada tarea "]
["Los encabezados de la tabla se encuentran en las celdas de B5 a G5. \nHay dos columnas ocultas: Las columnas “Inicio el día” y “Duración de la tarea” en las celdas F5 y G5 se calculan automáticamente y se usan para crear el diagrama de Gantt en la hoja de cálculo Diagrama de Gantt. \nLos datos de ejemplo se encuentran en las celdas B6 a E21. \nLa siguiente instrucción se encuentra en la celda A22.","Posición","Fecha de inicio","Fecha de finalización","Hito o actividad","Inicio el día","Duración de la tarea"]
[null,1,{"$f":"TODAY()-10","v":"2018-08-06"},{"$f":"Hitos[[#This Row],[Fecha de inicio]]+10","v":"2018-08-16"},"Inicio",{"$f":"IFERROR(IF(OR(LEN(Hitos[[#This Row],[Fecha de inicio]])=0,LEN(Hitos[[#This Row],[Fecha de finalización]])=0),\"\",INT(C6)-INT($C$6)),\"\")","v":0},{"$f":"IFERROR(IF(Hitos[[#This Row],[Inicio el día]]=0,DATEDIF(Hitos[[#This Row],[Fecha de inicio]],Hitos[[#This Row],[Fecha de finalización]],\"d\")+1,IF(LEN(Hitos[[#This Row],[Inicio el día]])=0,\"\",DATEDIF(Hitos[[#This Row],[Fecha de inicio]],Hitos[[#This Row],[Fecha de finalización]],\"d\")+1)),0)","v":11}]
[null,2,{"$f":"TODAY()+5","v":"2018-08-21"},{"$f":"Hitos[[#This Row],[Fecha de inicio]]+15","v":"2018-09-05"},{"$f":"\"Actividad\"&\" \"&ROW($A2)","v":"Actividad 2"},{"$f":"IFERROR(IF(OR(LEN(Hitos[[#This Row],[Fecha de inicio]])=0,LEN(Hitos[[#This Row],[Fecha de finalización]])=0),\"\",INT(C7)-INT($C$6)),\"\")","v":15},{"$f":"IFERROR(IF(Hitos[[#This Row],[Inicio el día]]=0,DATEDIF(Hitos[[#This Row],[Fecha de inicio]],Hitos[[#This Row],[Fecha de finalización]],\"d\")+1,IF(LEN(Hitos[[#This Row],[Inicio el día]])=0,\"\",DATEDIF(Hitos[[#This Row],[Fecha de inicio]],Hitos[[#This Row],[Fecha de finalización]],\"d\")+1)),0)","v":16}]
[null,3,{"$f":"TODAY()-30","v":"2018-07-17"},{"$f":"Hitos[[#This Row],[Fecha de inicio]]+152","v":"2018-12-16"},"Actividad 3",{"$f":"IFERROR(IF(OR(LEN(Hitos[[#This Row],[Fecha de inicio]])=0,LEN(Hitos[[#This Row],[Fecha de finalización]])=0),\"\",INT(C8)-INT($C$6)),\"\")","v":{"v":-20,"d":"-20 "}},{"$f":"IFERROR(IF(Hitos[[#This Row],[Inicio el día]]=0,DATEDIF(Hitos[[#This Row],[Fecha de inicio]],Hitos[[#This Row],[Fecha de finalización]],\"d\")+1,IF(LEN(Hitos[[#This Row],[Inicio el día]])=0,\"\",DATEDIF(Hitos[[#This Row],[Fecha de inicio]],Hitos[[#This Row],[Fecha de finalización]],\"d\")+1)),0)","v":153}]
[null,4,{"$f":"TODAY()+2","v":"2018-08-18"},{"$f":"Hitos[[#This Row],[Fecha de inicio]]+150","v":"2019-01-15"},"Actividad 4",{"$f":"IFERROR(IF(OR(LEN(Hitos[[#This Row],[Fecha de inicio]])=0,LEN(Hitos[[#This Row],[Fecha de finalización]])=0),\"\",INT(C9)-INT($C$6)),\"\")","v":12},{"$f":"IFERROR(IF(Hitos[[#This Row],[Inicio el día]]=0,DATEDIF(Hitos[[#This Row],[Fecha de inicio]],Hitos[[#This Row],[Fecha de finalización]],\"d\")+1,IF(LEN(Hitos[[#This Row],[Inicio el día]])=0,\"\",DATEDIF(Hitos[[#This Row],[Fecha de inicio]],Hitos[[#This Row],[Fecha de finalización]],\"d\")+1)),0)","v":151}]
[null,5,{"$f":"TODAY()+15","v":"2018-08-31"},{"$f":"Hitos[[#This Row],[Fecha de inicio]]+14","v":"2018-09-14"},"Actividad 5",{"$f":"IFERROR(IF(OR(LEN(Hitos[[#This Row],[Fecha de inicio]])=0,LEN(Hitos[[#This Row],[Fecha de finalización]])=0),\"\",INT(C10)-INT($C$6)),\"\")","v":25},{"$f":"IFERROR(IF(Hitos[[#This Row],[Inicio el día]]=0,DATEDIF(Hitos[[#This Row],[Fecha de inicio]],Hitos[[#This Row],[Fecha de finalización]],\"d\")+1,IF(LEN(Hitos[[#This Row],[Inicio el día]])=0,\"\",DATEDIF(Hitos[[#This Row],[Fecha de inicio]],Hitos[[#This Row],[Fecha de finalización]],\"d\")+1)),0)","v":15}]
[null,6,{"$f":"TODAY()+30","v":"2018-09-15"},{"$f":"Hitos[[#This Row],[Fecha de inicio]]+45","v":"2018-10-30"},"Actividad 6",{"$f":"IFERROR(IF(OR(LEN(Hitos[[#This Row],[Fecha de inicio]])=0,LEN(Hitos[[#This Row],[Fecha de finalización]])=0),\"\",INT(C11)-INT($C$6)),\"\")","v":40},{"$f":"IFERROR(IF(Hitos[[#This Row],[Inicio el día]]=0,DATEDIF(Hitos[[#This Row],[Fecha de inicio]],Hitos[[#This Row],[Fecha de finalización]],\"d\")+1,IF(LEN(Hitos[[#This Row],[Inicio el día]])=0,\"\",DATEDIF(Hitos[[#This Row],[Fecha de inicio]],Hitos[[#This Row],[Fecha de finalización]],\"d\")+1)),0)","v":46}]
[null,7,{"$f":"TODAY()+45","v":"2018-09-30"},{"$f":"Hitos[[#This Row],[Fecha de inicio]]+56","v":"2018-11-25"},"Actividad 7",{"$f":"IFERROR(IF(OR(LEN(Hitos[[#This Row],[Fecha de inicio]])=0,LEN(Hitos[[#This Row],[Fecha de finalización]])=0),\"\",INT(C12)-INT($C$6)),\"\")","v":55},{"$f":"IFERROR(IF(Hitos[[#This Row],[Inicio el día]]=0,DATEDIF(Hitos[[#This Row],[Fecha de inicio]],Hitos[[#This Row],[Fecha de finalización]],\"d\")+1,IF(LEN(Hitos[[#This Row],[Inicio el día]])=0,\"\",DATEDIF(Hitos[[#This Row],[Fecha de inicio]],Hitos[[#This Row],[Fecha de finalización]],\"d\")+1)),0)","v":57}]
[null,8,{"$f":"TODAY()+60","v":"2018-10-15"},{"$f":"Hitos[[#This Row],[Fecha de inicio]]+30","v":"2018-11-14"},"Actividad 8",{"$f":"IFERROR(IF(OR(LEN(Hitos[[#This Row],[Fecha de inicio]])=0,LEN(Hitos[[#This Row],[Fecha de finalización]])=0),\"\",INT(C13)-INT($C$6)),\"\")","v":70},{"$f":"IFERROR(IF(Hitos[[#This Row],[Inicio el día]]=0,DATEDIF(Hitos[[#This Row],[Fecha de inicio]],Hitos[[#This Row],[Fecha de finalización]],\"d\")+1,IF(LEN(Hitos[[#This Row],[Inicio el día]])=0,\"\",DATEDIF(Hitos[[#This Row],[Fecha de inicio]],Hitos[[#This Row],[Fecha de finalización]],\"d\")+1)),0)","v":31}]
[null,9,{"$f":"TODAY()+37","v":"2018-09-22"},{"$f":"Hitos[[#This Row],[Fecha de inicio]]+22","v":"2018-10-14"},"Actividad 9",{"$f":"IFERROR(IF(OR(LEN(Hitos[[#This Row],[Fecha de inicio]])=0,LEN(Hitos[[#This Row],[Fecha de finalización]])=0),\"\",INT(C14)-INT($C$6)),\"\")","v":47},{"$f":"IFERROR(IF(Hitos[[#This Row],[Inicio el día]]=0,DATEDIF(Hitos[[#This Row],[Fecha de inicio]],Hitos[[#This Row],[Fecha de finalización]],\"d\")+1,IF(LEN(Hitos[[#This Row],[Inicio el día]])=0,\"\",DATEDIF(Hitos[[#This Row],[Fecha de inicio]],Hitos[[#This Row],[Fecha de finalización]],\"d\")+1)),0)","v":23}]
[null,10,{"$f":"TODAY()-20","v":"2018-07-27"},{"$f":"Hitos[[#This Row],[Fecha de inicio]]+160","v":"2019-01-03"},{"$f":"\"Actividad\"&\" \"&ROW($A10)","v":"Actividad 10"},{"$f":"IFERROR(IF(OR(LEN(Hitos[[#This Row],[Fecha de inicio]])=0,LEN(Hitos[[#This Row],[Fecha de finalización]])=0),\"\",INT(C15)-INT($C$6)),\"\")","v":{"v":-10,"d":"-10 "}},{"$f":"IFERROR(IF(Hitos[[#This Row],[Inicio el día]]=0,DATEDIF(Hitos[[#This Row],[Fecha de inicio]],Hitos[[#This Row],[Fecha de finalización]],\"d\")+1,IF(LEN(Hitos[[#This Row],[Inicio el día]])=0,\"\",DATEDIF(Hitos[[#This Row],[Fecha de inicio]],Hitos[[#This Row],[Fecha de finalización]],\"d\")+1)),0)","v":161}]
[null,11,{"$f":"TODAY()+20","v":"2018-09-05"},{"$f":"Hitos[[#This Row],[Fecha de inicio]]+65","v":"2018-11-09"},{"$f":"\"Actividad\"&\" \"&ROW($A11)","v":"Actividad 11"},{"$f":"IFERROR(IF(OR(LEN(Hitos[[#This Row],[Fecha de inicio]])=0,LEN(Hitos[[#This Row],[Fecha de finalización]])=0),\"\",INT(C16)-INT($C$6)),\"\")","v":30},{"$f":"IFERROR(IF(Hitos[[#This Row],[Inicio el día]]=0,DATEDIF(Hitos[[#This Row],[Fecha de inicio]],Hitos[[#This Row],[Fecha de finalización]],\"d\")+1,IF(LEN(Hitos[[#This Row],[Inicio el día]])=0,\"\",DATEDIF(Hitos[[#This Row],[Fecha de inicio]],Hitos[[#This Row],[Fecha de finalización]],\"d\")+1)),0)","v":66}]
[null,12,{"$f":"TODAY()+70","v":"2018-10-25"},{"$f":"Hitos[[#This Row],[Fecha de inicio]]+67","v":"2018-12-31"},{"$f":"\"Actividad\"&\" \"&ROW($A12)","v":"Actividad 12"},{"$f":"IFERROR(IF(OR(LEN(Hitos[[#This Row],[Fecha de inicio]])=0,LEN(Hitos[[#This Row],[Fecha de finalización]])=0),\"\",INT(C17)-INT($C$6)),\"\")","v":80},{"$f":"IFERROR(IF(Hitos[[#This Row],[Inicio el día]]=0,DATEDIF(Hitos[[#This Row],[Fecha de inicio]],Hitos[[#This Row],[Fecha de finalización]],\"d\")+1,IF(LEN(Hitos[[#This Row],[Inicio el día]])=0,\"\",DATEDIF(Hitos[[#This Row],[Fecha de inicio]],Hitos[[#This Row],[Fecha de finalización]],\"d\")+1)),0)","v":68}]
[null,13,{"$f":"TODAY()+90","v":"2018-11-14"},{"$f":"Hitos[[#This Row],[Fecha de inicio]]+14","v":"2018-11-28"},{"$f":"\"Actividad\"&\" \"&ROW($A13)","v":"Actividad 13"},{"$f":"IFERROR(IF(OR(LEN(Hitos[[#This Row],[Fecha de inicio]])=0,LEN(Hitos[[#This Row],[Fecha de finalización]])=0),\"\",INT(C18)-INT($C$6)),\"\")","v":100},{"$f":"IFERROR(IF(Hitos[[#This Row],[Inicio el día]]=0,DATEDIF(Hitos[[#This Row],[Fecha de inicio]],Hitos[[#This Row],[Fecha de finalización]],\"d\")+1,IF(LEN(Hitos[[#This Row],[Inicio el día]])=0,\"\",DATEDIF(Hitos[[#This Row],[Fecha de inicio]],Hitos[[#This Row],[Fecha de finalización]],\"d\")+1)),0)","v":15}]
[null,14,{"$f":"TODAY()+100","v":"2018-11-24"},{"$f":"Hitos[[#This Row],[Fecha de inicio]]+3","v":"2018-11-27"},{"$f":"\"Actividad\"&\" \"&ROW($A14)","v":"Actividad 14"},{"$f":"IFERROR(IF(OR(LEN(Hitos[[#This Row],[Fecha de inicio]])=0,LEN(Hitos[[#This Row],[Fecha de finalización]])=0),\"\",INT(C19)-INT($C$6)),\"\")","v":110},{"$f":"IFERROR(IF(Hitos[[#This Row],[Inicio el día]]=0,DATEDIF(Hitos[[#This Row],[Fecha de inicio]],Hitos[[#This Row],[Fecha de finalización]],\"d\")+1,IF(LEN(Hitos[[#This Row],[Inicio el día]])=0,\"\",DATEDIF(Hitos[[#This Row],[Fecha de inicio]],Hitos[[#This Row],[Fecha de finalización]],\"d\")+1)),0)","v":4}]
[null,15,{"$f":"TODAY()+50","v":"2018-10-05"},{"$f":"Hitos[[#This Row],[Fecha de inicio]]+130","v":"2019-02-12"},"Actividad 15",{"$f":"IFERROR(IF(OR(LEN(Hitos[[#This Row],[Fecha de inicio]])=0,LEN(Hitos[[#This Row],[Fecha de finalización]])=0),\"\",INT(C20)-INT($C$6)),\"\")","v":60},{"$f":"IFERROR(IF(Hitos[[#This Row],[Inicio el día]]=0,DATEDIF(Hitos[[#This Row],[Fecha de inicio]],Hitos[[#This Row],[Fecha de finalización]],\"d\")+1,IF(LEN(Hitos[[#This Row],[Inicio el día]])=0,\"\",DATEDIF(Hitos[[#This Row],[Fecha de inicio]],Hitos[[#This Row],[Fecha de finalización]],\"d\")+1)),0)","v":131}]
[{"$nulls":5},{"$f":"IFERROR(IF(OR(LEN(Hitos[[#This Row],[Fecha de inicio]])=0,LEN(Hitos[[#This Row],[Fecha de finalización]])=0),\"\",INT(C21)-INT($C$6)),\"\")","v":""},{"$f":"IFERROR(IF(Hitos[[#This Row],[Inicio el día]]=0,DATEDIF(Hitos[[#This Row],[Fecha de inicio]],Hitos[[#This Row],[Fecha de finalización]],\"d\")+1,IF(LEN(Hitos[[#This Row],[Inicio el día]])=0,\"\",DATEDIF(Hitos[[#This Row],[Fecha de inicio]],Hitos[[#This Row],[Fecha de finalización]],\"d\")+1)),0)","v":""}]
["Para agregar más hitos o actividades, inserte filas nuevas encima de esta línea.\nEsta es la última instrucción de esta hoja de cálculo.","Para agregar más hitos o actividades, inserte filas nuevas encima de esta línea."]

{"sheet":"Diagrama de Gantt","index":1,"n_rows":1,"n_cols":1,"rows_kept":1}
["El diagrama de Gantt con una barra de desplazamiento se encuentra en esta hoja de cálculo. \nLa barra de desplazamiento empieza en la celda B29.\nEsta es la última instrucción de esta hoja de cálculo."]

{"sheet":"Información","index":2,"n_rows":6,"n_cols":1,"rows_kept":6}
["Información acerca de este libro"]
["\nAgregue sus datos en la hoja de cálculo Seguimiento de proyecto y, después, desplácese por una representación visual de la escala de tiempo en la hoja de cálculo Diagrama de Gantt. \n"]
["La columna de posición en la hoja de cálculo Seguimiento de proyecto le permite representar hitos y actividades en líneas separadas. Por ejemplo, puede tener dos hitos o actividades que se inicien en el mismo día y que se ejecuten en paralelo. Si tuvieran el mismo valor de posición, se mostrarían superpuestos en el gráfico. Especifique dos valores únicos para representarlos en líneas separadas. Pruébelo.\n\nCuando se complete el gráfico, puede que se muestren marcadores sin texto ni duración establecidos en una escala de tiempo específica. Cuando el último hito se desplace fuera del gráfico, estos marcadores indicarán el fin de los hitos que se representarán en el seguimiento del proyecto. Solo tiene que desplazarse hacia atrás o hasta el principio para ver los hitos que se pueden representar en el gráfico.\n"]
["Guía para lectores de pantalla"]
["Hay 4 hojas de cálculo en este libro. \n\nSeguimiento de proyecto\nDiagrama de Gantt\nInformación\nDatos de gráf. dinám. (ocultos)\n\nLas instrucciones de las hojas de cálculo se encuentran en la columna A de cada hoja, a partir de la celda A1. Están escritas con texto oculto. Cada paso le guiará a través de la información de esa fila. Los pasos posteriores continúan en la celda A2, A3, y así sucesivamente, a menos que se indique de forma explícita. Por ejemplo, el texto de una instrucción podría ser “Vaya a la celda A6” para continuar con el siguiente paso. \n\nEl texto oculto no se imprimirá.\n\nPara quitar las instrucciones de cualquier hoja de cálculo, es suficiente con eliminar la columna A.\n"]
["Esta es la última instrucción de esta hoja de cálculo."]

{"sheet":"Datos de gráf. dinám. (ocultos)","index":3,"n_rows":10,"n_cols":6,"rows_kept":10,"hidden":true}
["El título de esta hoja de cálculo se encuentra en la celda B1.","Datos de gráfico dinámicos"]
["El encabezado del incremento de desplazamiento horizontal se encuentra en la celda B2.\nPara incrementar los datos de forma manual, escriba un nuevo valor en la celda B3.\nLa página de desplazamiento se actualiza automáticamente cuando la barra de desplazamiento avanza o retrocede una página en la hoja de cálculo Diagrama de Gantt.","incremento de desplazamiento horizontal"]
["El valor de desplazamiento del diagrama de Gantt que se actualiza automáticamente se encuentra en la celda B3.",0]
["El título de la tabla se encuentra en la celda B4.","Tabla de datos dinámicos"]
["Los encabezados de la tabla se encuentran en las celdas de B5 a E5. \nHay una nota en la celda F5.\nEn esta tabla, se representarán hasta 5 hitos a la vez. \nNo modifique ni elimine esta hoja de cálculo ni sus contenidos.","hito","fecha","Inicio el día","duración","<-- Se representarán hasta 5 hitos a la vez."]
[null,{"$f":"IFERROR(IF(LEN(OFFSET('Seguimiento de proyecto'!$E6,$B$3,0,1,1))=0,\"\",INDEX(Hitos[],'Seguimiento de proyecto'!$B6+$B$3,4)),\"\")","v":"Inicio"},{"$f":"IFERROR(IF(LEN(OFFSET('Seguimiento de proyecto'!$C6,$B$3,0,1,1))=0,End_Date,INDEX(Hitos[],'Seguimiento de proyecto'!$B6+$B$3,2)),\"\")","v":"2018-08-06"},{"$f":"IFERROR(IF(LEN(OFFSET('Seguimiento de proyecto'!$F6,$B$3,0,1,1))=0,\"\",INDEX(Hitos[],'Seguimiento de proyecto'!$B6+$B$3,5)),\"\")","v":0},{"$f":"IFERROR(IF(LEN(OFFSET('Seguimiento de proyecto'!$G6,$B$3,0,1,1))=0,\"\",INDEX(Hitos[],'Seguimiento de proyecto'!$B6+$B$3,6)),\"\")","v":11}]
[null,{"$f":"IFERROR(IF(LEN(OFFSET('Seguimiento de proyecto'!$E7,$B$3,0,1,1))=0,\"\",INDEX(Hitos[],'Seguimiento de proyecto'!$B7+$B$3,4)),\"\")","v":"Actividad 2"},{"$f":"IFERROR(IF(LEN(OFFSET('Seguimiento de proyecto'!$C7,$B$3,0,1,1))=0,End_Date,INDEX(Hitos[],'Seguimiento de proyecto'!$B7+$B$3,2)),\"\")","v":"2018-08-21"},{"$f":"IFERROR(IF(LEN(OFFSET('Seguimiento de proyecto'!$F7,$B$3,0,1,1))=0,\"\",INDEX(Hitos[],'Seguimiento de proyecto'!$B7+$B$3,5)),\"\")","v":15},{"$f":"IFERROR(IF(LEN(OFFSET('Seguimiento de proyecto'!$G7,$B$3,0,1,1))=0,\"\",INDEX(Hitos[],'Seguimiento de proyecto'!$B7+$B$3,6)),\"\")","v":16}]
[null,{"$f":"IFERROR(IF(LEN(OFFSET('Seguimiento de proyecto'!$E8,$B$3,0,1,1))=0,\"\",INDEX(Hitos[],'Seguimiento de proyecto'!$B8+$B$3,4)),\"\")","v":"Actividad 3"},{"$f":"IFERROR(IF(LEN(OFFSET('Seguimiento de proyecto'!$C8,$B$3,0,1,1))=0,End_Date,INDEX(Hitos[],'Seguimiento de proyecto'!$B8+$B$3,2)),\"\")","v":"2018-07-17"},{"$f":"IFERROR(IF(LEN(OFFSET('Seguimiento de proyecto'!$F8,$B$3,0,1,1))=0,\"\",INDEX(Hitos[],'Seguimiento de proyecto'!$B8+$B$3,5)),\"\")","v":-20},{"$f":"IFERROR(IF(LEN(OFFSET('Seguimiento de proyecto'!$G8,$B$3,0,1,1))=0,\"\",INDEX(Hitos[],'Seguimiento de proyecto'!$B8+$B$3,6)),\"\")","v":153}]
[null,{"$f":"IFERROR(IF(LEN(OFFSET('Seguimiento de proyecto'!$E9,$B$3,0,1,1))=0,\"\",INDEX(Hitos[],'Seguimiento de proyecto'!$B9+$B$3,4)),\"\")","v":"Actividad 4"},{"$f":"IFERROR(IF(LEN(OFFSET('Seguimiento de proyecto'!$C9,$B$3,0,1,1))=0,End_Date,INDEX(Hitos[],'Seguimiento de proyecto'!$B9+$B$3,2)),\"\")","v":"2018-08-18"},{"$f":"IFERROR(IF(LEN(OFFSET('Seguimiento de proyecto'!$F9,$B$3,0,1,1))=0,\"\",INDEX(Hitos[],'Seguimiento de proyecto'!$B9+$B$3,5)),\"\")","v":12},{"$f":"IFERROR(IF(LEN(OFFSET('Seguimiento de proyecto'!$G9,$B$3,0,1,1))=0,\"\",INDEX(Hitos[],'Seguimiento de proyecto'!$B9+$B$3,6)),\"\")","v":151}]
[null,{"$f":"IFERROR(IF(LEN(OFFSET('Seguimiento de proyecto'!$E10,$B$3,0,1,1))=0,\"\",INDEX(Hitos[],'Seguimiento de proyecto'!$B10+$B$3,4)),\"\")","v":"Actividad 5"},{"$f":"IFERROR(IF(LEN(OFFSET('Seguimiento de proyecto'!$C10,$B$3,0,1,1))=0,End_Date,INDEX(Hitos[],'Seguimiento de proyecto'!$B10+$B$3,2)),\"\")","v":"2018-08-31"},{"$f":"IFERROR(IF(LEN(OFFSET('Seguimiento de proyecto'!$F10,$B$3,0,1,1))=0,\"\",INDEX(Hitos[],'Seguimiento de proyecto'!$B10+$B$3,5)),\"\")","v":25},{"$f":"IFERROR(IF(LEN(OFFSET('Seguimiento de proyecto'!$G10,$B$3,0,1,1))=0,\"\",INDEX(Hitos[],'Seguimiento de proyecto'!$B10+$B$3,6)),\"\")","v":15}]